{"text_format":"3","workbook":"xlsx","n_sheets":10,"sheets":["Sekcje_I-IV","Sekcja_V_WF","Sekcja_VI_ZRF ","Sekcja_VII_wsk","Sekcja_VIII_Zal","Sekcja_IX_Osw","Zal_16_Wyd_konta","Zal_17_Karta_szkolenia","Zal_18_Lista_obecnosci","Zal_19_Karta_wkladu_rzeczowego"],"not_rendered":{"images":3,"defined_names":28},"read":"whole","date_system":"1900"}

{"sheet":"Sekcje_I-IV","index":0,"n_rows":175,"n_cols":41,"rows_kept":175,"merged":[[0,1,6,25],[1,26,1,30],[1,31,1,36],[3,28,5,35],[4,39,6,40],[6,27,6,34],[6,35,6,36],[9,1,9,25],[9,26,9,37],[11,1,11,37],[13,1,13,37],[13,39,15,40],[15,2,15,14],[16,3,18,31],[19,3,19,31],[21,2,21,14],[21,18,21,33],[23,2,23,14],[23,18,23,33],[25,2,25,27],[25,28,25,33],[27,2,27,27],[27,28,27,33],[29,3,29,27],[29,28,29,30],[31,3,32,26],[31,28,31,33],[33,2,34,26],[33,28,33,33],[35,28,35,33],[37,1,37,37],[39,2,39,14],[39,15,39,17],[39,18,39,29],[40,1,40,37],[41,2,41,14],[43,2,43,16],[43,20,43,29],[44,2,47,18],[46,20,46,29],[49,2,49,37],[50,2,50,5],[50,6,50,13],[50,14,50,25],[50,26,50,36],[51,2,51,5],[51,6,51,13],[51,14,51,25],[51,26,51,36],[52,2,52,5],[52,6,52,13],[52,26,52,36],[53,2,53,5],[53,6,53,13],[53,14,53,25],[53,26,53,36],[54,2,54,5],[54,6,54,13],[54,14,54,25],[54,26,54,36],[55,2,55,5],[55,6,55,13],[55,14,55,25],[55,26,55,36],[56,2,56,13],[56,14,56,36],[57,2,57,13],[57,14,57,36],[59,2,59,37],[60,2,60,5],[60,6,60,13],[60,14,60,25],[60,26,60,36],[61,2,61,5],[61,6,61,13],[61,14,61,25],[61,26,61,36],[62,2,62,5],[62,6,62,13],[62,14,62,25],[62,26,62,36],[63,2,63,5],[63,6,63,13],[63,14,63,25],[63,26,63,36],[64,2,64,5],[64,6,64,13],[64,14,64,25],[64,26,64,36],[65,2,65,5],[65,6,65,13],[65,14,65,25],[65,26,65,36],[66,2,66,13],[66,14,66,36],[67,2,67,13],[67,14,67,36],[68,2,68,36],[70,2,70,36],[71,2,71,3],[71,4,71,8],[71,9,71,18],[71,19,71,36],[72,2,72,3],[72,4,72,8],[72,9,72,18],[72,19,72,36],[73,2,73,3],[73,4,73,8],[73,9,73,18],[73,19,73,36],[74,2,74,3],[74,4,74,8],[74,9,74,18],[74,19,74,36],[75,2,75,3],[75,4,75,8],[75,9,75,18],[75,19,75,36],[77,2,77,37],[78,2,78,13],[78,14,78,25],[78,26,78,36],[79,2,79,13],[79,14,79,25],[79,26,79,36],[80,2,80,5],[80,6,80,13],[80,14,80,25],[80,26,80,36],[81,2,81,5],[81,6,81,13],[81,14,81,25],[81,26,81,36],[82,2,82,5],[82,6,82,13],[82,14,82,25],[82,26,82,36],[83,2,83,5],[83,6,83,13],[83,14,83,25],[83,26,83,36],[84,2,84,5],[84,6,84,13],[84,14,84,25],[84,26,84,36],[85,2,85,5],[85,6,85,13],[85,14,85,25],[85,26,85,36],[86,2,86,13],[86,14,86,36],[87,2,87,13],[87,14,87,36],[89,2,89,36],[90,2,90,13],[90,14,90,25],[90,26,90,36],[91,2,91,13],[91,14,91,25],[91,26,91,36],[92,2,92,13],[92,14,92,36],[93,2,93,13],[93,14,93,36],[96,1,96,36],[98,2,98,9],[98,10,98,36],[100,2,100,10],[101,4,101,7],[102,2,102,10],[103,11,103,12],[103,14,103,16],[103,17,103,20],[103,37,104,37],[105,2,105,17],[105,23,105,34],[107,2,107,20],[107,23,107,34],[110,1,110,18],[110,21,110,23],[112,2,112,7],[112,22,112,23],[113,11,113,12],[113,14,113,15],[113,17,113,20],[113,24,113,25],[113,27,113,28],[113,30,113,33],[115,2,115,20],[115,23,115,34],[117,2,117,20],[117,23,117,34],[119,2,120,20],[119,23,119,34],[121,3,121,20],[121,23,121,34],[123,2,124,20],[123,23,123,34],[125,3,125,17],[125,23,125,34],[127,3,127,20],[127,23,127,34],[128,2,128,22],[129,2,129,20],[129,23,129,34],[131,2,132,20],[131,23,131,34],[133,3,133,21],[133,23,133,34],[135,3,136,22],[135,23,135,34],[138,1,139,37],[145,2,145,14],[147,2,150,18],[149,20,149,29],[152,2,152,35],[154,3,154,20],[154,23,154,34],[156,3,156,20],[156,23,156,34],[158,3,159,20],[158,23,158,34],[160,3,160,21],[160,23,160,34],[162,3,163,20],[162,23,162,34],[164,20,164,22],[164,23,164,34],[166,3,166,4],[166,5,167,21],[166,23,166,34],[168,3,168,21],[168,23,168,34],[170,2,171,2],[170,3,171,22],[170,23,170,34],[172,3,172,21],[172,23,172,34],[174,3,174,4],[174,5,175,21],[174,23,174,34]]}
[null,"WNIOSEK O PŁATNOŚĆ \n\nna operacje w ramach poddziałania 19.2 „Wsparcie na wdrażanie operacji w ramach strategii rozwoju lokalnego kierowanego przez społeczność”\nz wyłączeniem projektów grantowych oraz operacji w zakresie podejmowania działalności gospodarczej\nobjętego Programem Rozwoju Obszarów Wiejskich na lata 2014-2020                                                                                                                                                                                                                                                                        "]
[{"$nulls":26},"symbol formularza",{"$nulls":4},"W-2_19.2"]
[]
[{"$nulls":28},"Potwierdzenie złożenia wniosku \n/pieczęć UM/"]
[{"$nulls":39},"Jak cofnąć niepożądane\n(a dokonane) zmiany?"]
[]
[{"$nulls":27},"Liczba załączników dołączonych przez Beneficjenta"]
[]
[null,null,"UM",null,null,"-",6,9,3,5,"-","UM",{"$nulls":7},"/",{"$nulls":9},"­",null,null,"­",2,0]
[null,"znak sprawy (wypełnia Urząd Marszałkowski albo wojewódzka samorządowa jednostka organizacyjna - dalej UM)",{"$nulls":24},"data złożenia i podpis  (wypełnia UM)"]
[]
[null,"W celu poprawnego wypełnienia wniosku należy zapoznać się z informacjami zawartymi w Instrukcji jego wypełniania "]
[]
[null,"I. CZĘŚĆ OGÓLNA"]
[]
[null,null,"1. Wniosek dotyczy:",{"$nulls":30},"TAK"]
[null,null,"1.1","operacji realizowanej przez podmiot inny niż LGD, z wyłączeniem operacji w zakresie  podejmowania działalności gospodarczej",{"$nulls":29},{"$f":"IF(AH20=\"x\",\"\",\"x\")","v":"x"}]
[]
[{"$nulls":33},"TAK"]
[null,null,"1.2","operacji własnej LGD"]
[]
[null,null,"2. Cel złożenia wniosku o płatność",{"$nulls":15},"(wybierz z listy)"]
[]
[null,null,"3. Rodzaj płatności",{"$nulls":15},"(wybierz z listy)"]
[]
[null,null,"4. Z postanowień umowy wynika obowiązek utworzenia / utrzymania miejsc(a) pracy ",{"$nulls":25},"(wybierz z listy)"]
[]
[null,null,"5. Operacja jest dedykowana grupie(­om) defaworyzowanej(­ym), określonej(-ym) w LSR",{"$nulls":25},"(wybierz z listy)"]
[]
[null,null,"5.1 ","Liczba grup defaworyzowanych, do których dedykowana jest operacja"]
[]
[null,null,"5.2","Operacja jest dedykowana grupie(­om) defaworyzowanej(­ym), poprzez utworzenie /  utrzymanie miejsc(a) pracy",{"$nulls":24},"(wybierz z listy)"]
[]
[null,null,"6. Operacja obejmująca wyposażenie mające na celu szerzenie lokalnej kultury i dziedzictwa lokalnego",{"$nulls":25},"(wybierz z listy)"]
[]
[]
[]
[null,"II. DANE IDENTYFIKACYJNE BENEFICJENTA "]
[]
[null,null,"1. Liczba podmiotów wspólnie wnioskujących"]
[]
[null,null,"2. Numer identyfikacyjny "]
[]
[null,null,"3. Imię i nazwisko / Nazwa Beneficjenta ",{"$nulls":17},"4. NIP 1"]
[]
[]
[{"$nulls":20},"5. REGON "]
[{"$nulls":29},"-"]
[]
[null,null,"6. Adres Beneficjenta (adres zamieszkania osoby fizycznej / adres wykonywania działalności gospodarczej / adres siedziby / siedziby oddziału osoby prawnej albo jednostki organizacyjnej nieposiadającej osobowości prawnej) "]
[null,null,"6.1 Kraj",{"$nulls":3},"6.2 Województwo",{"$nulls":7},"6.3 Powiat ",{"$nulls":11},"6.4 Gmina"]
[null,null,"Polska",{"$nulls":3},"(wybierz z listy)"]
[null,null,"6.5 Kod pocztowy",{"$nulls":3},"6.6 Poczta",{"$nulls":7},"6.7 Miejscowość",{"$nulls":11},"6.8 Ulica"]
[]
[null,null,"6.9 Nr domu",{"$nulls":3},"6.10 Nr lokalu",{"$nulls":7},"6.11 Telefon stacjonarny / komórkowy",{"$nulls":11},"6.12 Faks"]
[]
[null,null,"6.13 E-mail",{"$nulls":11},"6.14 Adres www"]
[]
[]
[null,null,"7. Adres do korespondencji (wypełnić, jeśli jest inny niż w pkt 6 oraz w przypadku wskazania pełnomocnika)"]
[null,null,"7.1 Kraj",{"$nulls":3},"7.2 Województwo",{"$nulls":7},"7.3 Powiat ",{"$nulls":11},"7.4 Gmina"]
[null,null,"(wybierz z listy)",{"$nulls":3},{"$f":"IF(C62<>\"Polska\",\"nie dotyczy\",\"(wybierz z listy)\")","v":"nie dotyczy"}]
[null,null,"7.5 Kod pocztowy",{"$nulls":3},"7.6 Poczta",{"$nulls":7},"7.7 Miejscowość",{"$nulls":11},"7.8 Ulica"]
[]
[null,null,"7.9 Nr domu",{"$nulls":3},"7.10 Nr lokalu",{"$nulls":7},"7.11 Telefon stacjonarny / komórkowy",{"$nulls":11},"7.12 Faks"]
[]
[null,null,"7.13 E-mail",{"$nulls":11},"7.14 Adres www"]
[]
[null,null,"1 Pole niewypełniane przez osoby fizyczne nie prowadzące działalności gospodarczej lub niebędące zarejestrowanymi podatnikami podatku od towarów i usług.\n"]
[]
[null,null,"8. Dane osób upoważnionych do reprezentowania Beneficjenta (dotyczy Beneficjenta niebędącego osobą fizyczną)"]
[null,null,"Lp.",null,"Nazwisko / nazwa",{"$nulls":4},"Imię",{"$nulls":9},"Stanowisko / Funkcja"]
[null,null,"8.1"]
[null,null,"8.2"]
[null,null,"8.3"]
[null,null,"…"]
[{"$nulls":40},"Jak dodać wiersz?"]
[null,null,"9. Dane pełnomocnika Beneficjenta ",{"$nulls":37},"Jak uzupełnić formułę?"]
[null,null,"9.1 Nazwisko",{"$nulls":11},"9.2 Imię",{"$nulls":11},"9.3 Stanowisko / Funkcja"]
[]
[null,null,"9.4 Kraj",{"$nulls":3},"9.5 Województwo",{"$nulls":7},"9.6 Powiat ",{"$nulls":11},"9.7 Gmina"]
[null,null,"(wybierz z listy)",{"$nulls":3},{"$f":"IF(C82<>\"Polska\",\"nie dotyczy\",\"(wybierz z listy)\")","v":"nie dotyczy"}]
[null,null,"9.8 Kod pocztowy",{"$nulls":3},"9.9 Poczta",{"$nulls":7},"9.10 Miejscowość",{"$nulls":11},"9.11 Ulica"]
[]
[null,null,"9.12 Nr domu",{"$nulls":3},"9.13 Nr lokalu",{"$nulls":7},"9.14 Telefon stacjonarny / komórkowy",{"$nulls":11},"9.15 Faks"]
[]
[null,null,"9.16 E-mail",{"$nulls":11},"9.17 Adres www"]
[]
[]
[null,null,"10.Dane osoby uprawnionej do kontaktu "]
[null,null,"10.1 Nazwisko",{"$nulls":11},"10.2 Imię",{"$nulls":11},"10.3 Telefon stacjonarny / komórkowy"]
[]
[null,null,"10.4 Faks",{"$nulls":11},"10.5 E-mail"]
[]
[]
[]
[null,"III. DANE Z UMOWY O PRZYZNANIU POMOCY"]
[]
[null,null,"1. Nazwa Funduszu:","Nazwa Funduszu:",{"$nulls":6},"Europejski Fundusz Rolny na rzecz Rozwoju Obszarów Wiejskich"]
[]
[null,null,"2. Numer  umowy","Nr umowy",{"$nulls":12},"-",6,9,3,5,null,"-","U","M",{"$nulls":7},"/"]
[]
[null,null,"3. Data zawarcia umowy","Data zawarcia umowy ",{"$nulls":9},"-",null,null,"-",2,0]
[{"$nulls":11},"dzień",null,null,"miesiąc",null,null,"rok"]
[]
[null,null,"4. Kwota pomocy z umowy przyznana dla całej operacji",{"$nulls":32},"zł"]
[]
[null,null,"5. Kwota pomocy z umowy przyznana dla danego etapu operacji",{"$nulls":32},"zł"]
[]
[]
[null,"IV. DANE DOTYCZĄCE WNIOSKU O PŁATNOŚĆ "]
[]
[null,null,"1. Wniosek za okres:",{"$nulls":6},"od",{"$nulls":3},"-",null,null,"-",2,0,{"$nulls":3},"do",{"$nulls":3},"-",null,null,"-",2,0]
[{"$nulls":11},"dzień",null,null,"miesiąc",null,null,"rok",{"$nulls":6},"dzień",null,null,"miesiąc",null,null,"rok"]
[]
[null,null,"2. Koszty całkowite realizacji danego etapu operacji ",{"$nulls":32},"zł"]
[]
[null,null,"3. Koszty niekwalifikowalne realizacji danego etapu operacji",{"$nulls":28},",",{"$nulls":3},"zł"]
[]
[null,null,"4. Koszty kwalifikowalne realizacji danego etapu operacji\nw tym:",{"$nulls":28},",",{"$nulls":3},"zł"]
[]
[null,null,"4.1","Koszty związane z inwestycją",{"$nulls":31},"zł"]
[]
[null,null,"5. Wnioskowana kwota pomocy dla danego etapu operacji\nw tym:",{"$nulls":28},",",{"$nulls":3},"zł"]
[]
[null,null,"5.1","Publiczne środki wspólnotowe (wkład EFRROW)",{"$nulls":27},",",{"$nulls":3},"zł"]
[]
[null,null,"5.2","Publiczne środki krajowe (wkład krajowy) wypłacane przez ARiMR",{"$nulls":27},",",{"$nulls":3},"zł"]
[]
[null,null,"6.  Wkład własny Beneficjenta stanowiący publiczne środki krajowe ",{"$nulls":28},",",{"$nulls":3},"zł"]
[]
[null,null,"7. Wnioskowana kwota pomocy przypadająca na koszty kwalifikowalne realizacji operacji w części dotyczącej inwestycji\nw tym:",{"$nulls":32},"zł"]
[]
[null,null,"7.1","Kwota rozliczająca zaliczkę",{"$nulls":31},"zł"]
[]
[null,null,"7.2","Odsetki od wypłaconej zaliczki / wyprzedzającego finansowania podlegające rozliczeniu w ramach wniosku o płatność",{"$nulls":31},"zł"]
[]
[]
[null,"IV. A. DANE PODMIOTÓW WSPÓLNIE WNIOSKUJĄCYCH O PŁATNOŚĆ W DANYM ETAPIE OPERACJI \n(sekcja powielana dla wszystkich podmiotów wspólnie wnioskujących)"]
[]
[]
[null,null,"1. Nr podmiotu wspólnie wnioskującego "]
[]
[null,null,"2. Numer identyfikacyjny "]
[]
[null,null,"3. Imię i nazwisko / Nazwa  ",{"$nulls":17},"4. NIP1 "]
[]
[]
[]
[{"$nulls":20},"5. REGON "]
[{"$nulls":29},"-"]
[]
[null,null,"6. Dane wniosku o płatność dla danego podmiotu wspólnie wnioskującego"]
[]
[null,null,"6.1","Koszty całkowite realizacji danego etapu operacji ",{"$nulls":31},"zł"]
[]
[null,null,"6.2","Koszty niekwalifikowalne realizacji danego etapu operacji",{"$nulls":31},"zł"]
[]
[null,null,"6.3","Koszty kwalifikowalne realizacji danego etapu operacji\nw tym:",{"$nulls":31},"zł"]
[]
[{"$nulls":3},"6.3.1  Koszty związane z inwestycją",{"$nulls":31},"zł"]
[]
[null,null,"6.4","Wnioskowana kwota pomocy dla danego etapu operacji\nw tym:",{"$nulls":31},"zł"]
[]
[{"$nulls":3},"6.4.1  Publiczne środki wspólnotowe (wkład EFRROW)",{"$nulls":31},"zł"]
[]
[{"$nulls":3},"6.4.2",null,"Publiczne środki krajowe (wkład krajowy) wypłacane przez ARiMR",{"$nulls":29},"zł"]
[]
[null,null,"6.5  ","Wkład własny Beneficjenta stanowiący publiczne środki krajowe ",{"$nulls":31},"zł"]
[]
[null,null,"6.6","Wnioskowana kwota pomocy przypadająca na koszty   kwalifikowalne realizacji operacji w części dotyczącej inwestycji\nw tym:",{"$nulls":31},"zł"]
[]
[{"$nulls":3},"6.6.1  Kwota rozliczająca zaliczkę",{"$nulls":31},"zł"]
[]
[{"$nulls":3},"6.6.2 ",null,"Odsetki od wypłaconej zaliczki/wyprzedzającego finansowania podlegające rozliczeniu w ramach wniosku o płatność",{"$nulls":29},"zł"]

{"sheet":"Sekcja_V_WF","index":1,"n_rows":30,"n_cols":17,"rows_kept":30,"merged":[[1,0,1,14],[2,0,4,0],[2,1,4,1],[2,2,4,2],[2,3,4,3],[2,4,4,4],[2,5,4,5],[2,6,4,6],[2,7,4,7],[2,8,4,8],[2,9,4,9],[2,10,4,10],[2,11,4,11],[2,12,3,13],[2,14,4,14],[23,7,23,10],[24,7,24,9],[25,7,25,9],[26,7,26,9],[28,0,28,13],[29,0,29,13]]}
[]
["V. WYKAZ FAKTUR LUB DOKUMENTÓW O RÓWNOWAŻNEJ WARTOŚCI DOWODOWEJ DOKUMENTUJĄCYCH PONIESIONE KOSZTY "]
["Lp.","Nr dokumentu","Rodzaj dokumentu ","Numer konta księgowego lub numer kodu rachunkowego","Data \nwystawienia dokumentu  \n (dd-mm-rr)","NIP wystawcy dokumentu","Nazwa wystawcy dokumentu","Pozycja na dokumencie albo \nnazwa towaru/usługi","Pozycja w zestawieniu rzeczowo-finansowym ","Data zapłaty             (dd-mm-rr)","Sposób zapłaty (G/P/K)","Kwota wydatków całkowitych \n(w zł)","Kwota wydatków kwalifikowalnych (w zł)",null,"Numer podmiotu wspólnie wnioskującego\n o płatność"]
[]
[{"$nulls":12},"ogółem*","w tym VAT** "]
[null,1,2,3,4,5,6,7,8,9,10,11,12,13,14]
[1]
[2]
[3]
[4]
[5]
[6]
[7]
[8]
[9]
[10]
[11]
[12]
[13]
[14]
[15]
[16]
[17]
[{"$nulls":7},"RAZEM (w zł)",{"$nulls":3},{"$f":"SUM(L7:OFFSET(Razem_V_WF,-1,4))","v":{"v":0,"d":"0.00"}},{"$f":"SUM(M7:OFFSET(Razem_V_WF,-1,5))","v":{"v":0,"d":"0.00"}},{"$f":"SUM(N7:OFFSET(Razem_V_WF,-1,6))","v":{"v":0,"d":"0.00"}},null,null,"Jak dodać wiersz?"]
[{"$nulls":7},"dla podmiotu wspólnie wnioskującego nr",null,null,"…",{"$f":"IF(K25>0,SUMIF($O$7:OFFSET(Razem_V_WF,-1,7),$K25,L$7:OFFSET(Razem_V_WF,-1,4)),0)","v":{"v":0,"d":"0.00"}},{"$f":"IF(L25>0,SUMIF($O$7:OFFSET(Razem_V_WF,-1,7),$K25,M$7:OFFSET(Razem_V_WF,-1,5)),0)","v":{"v":0,"d":"0.00"}},{"$f":"IF(M25>0,SUMIF($O$7:OFFSET(Razem_V_WF,-1,7),$K25,N$7:OFFSET(Razem_V_WF,-1,6)),0)","v":{"v":0,"d":"0.00"}},null,null,"Jak uzupełnić formułę?"]
[{"$nulls":7},"dla podmiotu wspólnie wnioskującego nr",null,null,"…",{"$f":"IF(K26>0,SUMIF($O$7:OFFSET(Razem_V_WF,-1,7),$K26,L$7:OFFSET(Razem_V_WF,-1,4)),0)","v":{"v":0,"d":"0.00"}},{"$f":"IF(L26>0,SUMIF($O$7:OFFSET(Razem_V_WF,-1,7),$K26,M$7:OFFSET(Razem_V_WF,-1,5)),0)","v":{"v":0,"d":"0.00"}},{"$f":"IF(M26>0,SUMIF($O$7:OFFSET(Razem_V_WF,-1,7),$K26,N$7:OFFSET(Razem_V_WF,-1,6)),0)","v":{"v":0,"d":"0.00"}}]
[{"$nulls":7},"dla podmiotu wspólnie wnioskującego nr",null,null,"…",{"$f":"IF(K27>0,SUMIF($O$7:OFFSET(Razem_V_WF,-1,7),$K27,L$7:OFFSET(Razem_V_WF,-1,4)),0)","v":{"v":0,"d":"0.00"}},{"$f":"IF(L27>0,SUMIF($O$7:OFFSET(Razem_V_WF,-1,7),$K27,M$7:OFFSET(Razem_V_WF,-1,5)),0)","v":{"v":0,"d":"0.00"}},{"$f":"IF(M27>0,SUMIF($O$7:OFFSET(Razem_V_WF,-1,7),$K27,N$7:OFFSET(Razem_V_WF,-1,6)),0)","v":{"v":0,"d":"0.00"}}]
[{"$nulls":16},"Jak dodać wiersz?"]
["*    w kolumnie 12 należy wpisać kwotę brutto jedynie w przypadku, gdy VAT jest kosztem kwalifikowalnym. W pozostałych przypadkach należy wpisać kwotę netto.",{"$nulls":15},"Jak uzupełnić formułę?"]
["** w kolumnie 13 należy wpisać kwotę VAT jedynie w przypadku, gdy VAT jest kosztem kwalifikowalnym. W pozostałych przypadkach należy wpisać 0,00."]

{"sheet":"Sekcja_VI_ZRF ","index":2,"n_rows":52,"n_cols":15,"rows_kept":52,"merged":[[0,0,0,5],[0,6,0,11],[1,0,4,0],[1,1,4,1],[1,2,4,2],[1,3,4,3],[1,4,4,4],[1,5,2,7],[1,8,2,10],[1,11,4,11],[1,12,4,12],[3,5,4,5],[3,6,4,6],[3,7,4,7],[3,8,4,8],[3,9,4,9],[3,10,4,10],[6,1,6,12],[7,1,7,12],[11,1,11,4],[12,1,12,11],[16,1,16,4],[17,1,17,12],[21,1,21,4],[22,0,22,4],[23,1,23,12],[24,1,24,12],[28,0,28,4],[29,1,29,12],[33,0,33,4],[34,1,34,12],[38,0,38,4],[39,0,39,4],[40,1,40,12],[44,0,44,4],[45,1,45,4],[46,1,46,12],[51,0,51,12]]}
["VI. ZESTAWIENIE RZECZOWO-FINANSOWE Z REALIZACJI OPERACJI ",{"$nulls":5},"(WYBIERZ Z LISTY)"]
["Lp.","Wyszczególnienie zakresu rzeczowego dla etapu \n(zgodnie z pozycjami zawartymi w umowie)","Jednostki \nmiary","Ilość /\nliczba wg umowy","Ilość / \nliczba wg\nrozliczenia","Koszty kwalifikowalne operacji dla etapu wg umowy (zł)",null,null,"Koszty kwalifikowalne operacji dla etapu wg rozliczenia (zł)",null,null,"Odchylenie kosztów kwalifikowalnych \n(%)","Numer podmiotu wspólnie wnioskującego \no płatność"]
[]
[{"$nulls":5},"Koszty ogółem","w tym VAT***","w części dotyczącej inwestycji ","Koszty ogółem","w tym VAT***","w części dotyczącej inwestycji "]
[]
[null,1,2,3,4,5,6,7,8,9,10,11,12]
["I","Koszty kwalifikowalne określone w § 17 ust.1 rozporządzenia2, z wyłączeniem kosztów ogólnych: "]
["A*"]
["1**"]
["2**"]
["…"]
["Suma","A",{"$nulls":3},{"$f":"SUM(F9:OFFSET(Suma_VI_A,-1,5))","v":{"v":0,"d":"0.00"}},{"$f":"SUM(G9:OFFSET(Suma_VI_A,-1,6))","v":{"v":0,"d":"0.00"}},{"$f":"SUM(H9:OFFSET(Suma_VI_A,-1,7))","v":{"v":0,"d":"0.00"}},{"$f":"SUM(I9:OFFSET(Suma_VI_A,-1,8))","v":{"v":0,"d":"0.00"}},{"$f":"SUM(J9:OFFSET(Suma_VI_A,-1,9))","v":{"v":0,"d":"0.00"}},{"$f":"SUM(K9:OFFSET(Suma_VI_A,-1,10))","v":{"v":0,"d":"0.00"}},{"$nulls":3},"Jak dodać wiersz?"]
["B*",{"$nulls":13},"Jak uzupełnić formułę?"]
["1**"]
["2**"]
["…"]
["Suma","B",{"$nulls":3},{"$f":"SUM(F14:OFFSET(Suma_VI_B,-1,5))","v":{"v":0,"d":"0.00"}},{"$f":"SUM(G14:OFFSET(Suma_VI_B,-1,6))","v":{"v":0,"d":"0.00"}},{"$f":"SUM(H14:OFFSET(Suma_VI_B,-1,7))","v":{"v":0,"d":"0.00"}},{"$f":"SUM(I14:OFFSET(Suma_VI_B,-1,8))","v":{"v":0,"d":"0.00"}},{"$f":"SUM(J14:OFFSET(Suma_VI_B,-1,9))","v":{"v":0,"d":"0.00"}},{"$f":"SUM(K14:OFFSET(Suma_VI_B,-1,10))","v":{"v":0,"d":"0.00"}}]
["C*"]
["1**"]
["2**"]
["…"]
["Suma","C",{"$nulls":3},{"$f":"SUM(F19:OFFSET(Suma_VI_C,-1,5))","v":{"v":0,"d":"0.00"}},{"$f":"SUM(G19:OFFSET(Suma_VI_C,-1,6))","v":{"v":0,"d":"0.00"}},{"$f":"SUM(H19:OFFSET(Suma_VI_C,-1,7))","v":{"v":0,"d":"0.00"}},{"$f":"SUM(I19:OFFSET(Suma_VI_C,-1,8))","v":{"v":0,"d":"0.00"}},{"$f":"SUM(J19:OFFSET(Suma_VI_C,-1,9))","v":{"v":0,"d":"0.00"}},{"$f":"SUM(K19:OFFSET(Suma_VI_C,-1,10))","v":{"v":0,"d":"0.00"}}]
["Suma I",{"$nulls":4},{"$f":"SUM(OFFSET(Suma_VI_A,0,5),OFFSET(Suma_VI_B,0,5),OFFSET(Suma_VI_C,0,5))","v":{"v":0,"d":"0.00"}},{"$f":"SUM(OFFSET(Suma_VI_A,0,6),OFFSET(Suma_VI_B,0,6),OFFSET(Suma_VI_C,0,6))","v":{"v":0,"d":"0.00"}},{"$f":"SUM(OFFSET(Suma_VI_A,0,7),OFFSET(Suma_VI_B,0,7),OFFSET(Suma_VI_C,0,7))","v":{"v":0,"d":"0.00"}},{"$f":"SUM(OFFSET(Suma_VI_A,0,8),OFFSET(Suma_VI_B,0,8),OFFSET(Suma_VI_C,0,8))","v":{"v":0,"d":"0.00"}},{"$f":"SUM(OFFSET(Suma_VI_A,0,9),OFFSET(Suma_VI_B,0,9),OFFSET(Suma_VI_C,0,9))","v":{"v":0,"d":"0.00"}},{"$f":"SUM(OFFSET(Suma_VI_A,0,10),OFFSET(Suma_VI_B,0,10),OFFSET(Suma_VI_C,0,10))","v":{"v":0,"d":"0.00"}}]
["II","Wartość wkładu rzeczowego w formie nieodpłatnej, w tym:"]
["II.I","Wartość towarów "]
["1**"]
["2**"]
["…"]
["Suma II.I",{"$nulls":4},{"$f":"SUM(F26:OFFSET(Suma_VI_II_I,-1,5))","v":{"v":0,"d":"0.00"}},{"$f":"SUM(G26:OFFSET(Suma_VI_II_I,-1,6))","v":{"v":0,"d":"0.00"}},{"$f":"SUM(H26:OFFSET(Suma_VI_II_I,-1,7))","v":{"v":0,"d":"0.00"}},{"$f":"SUM(I26:OFFSET(Suma_VI_II_I,-1,8))","v":{"v":0,"d":"0.00"}},{"$f":"SUM(J26:OFFSET(Suma_VI_II_I,-1,9))","v":{"v":0,"d":"0.00"}},{"$f":"SUM(K26:OFFSET(Suma_VI_II_I,-1,10))","v":{"v":0,"d":"0.00"}}]
["II.II","Wartość gruntów lub nieruchomości "]
["1**"]
["2**"]
["…"]
["Suma II.II",{"$nulls":4},{"$f":"SUM(F31:OFFSET(Suma_VI_II_II,-1,5))","v":{"v":0,"d":"0.00"}},{"$f":"SUM(G31:OFFSET(Suma_VI_II_II,-1,6))","v":{"v":0,"d":"0.00"}},{"$f":"SUM(H31:OFFSET(Suma_VI_II_II,-1,7))","v":{"v":0,"d":"0.00"}},{"$f":"SUM(I31:OFFSET(Suma_VI_II_II,-1,8))","v":{"v":0,"d":"0.00"}},{"$f":"SUM(J31:OFFSET(Suma_VI_II_II,-1,9))","v":{"v":0,"d":"0.00"}},{"$f":"SUM(K31:OFFSET(Suma_VI_II_II,-1,10))","v":{"v":0,"d":"0.00"}}]
["II.III","Wartość pracy (usług oraz robót budowlanych świadczonych nieodpłatnie)"]
["1**"]
["2**"]
["…"]
["Suma II.III",{"$nulls":4},{"$f":"SUM(F36:OFFSET(Suma_VI_II_III,-1,5))","v":{"v":0,"d":"0.00"}},{"$f":"SUM(G36:OFFSET(Suma_VI_II_III,-1,6))","v":{"v":0,"d":"0.00"}},{"$f":"SUM(H36:OFFSET(Suma_VI_II_III,-1,7))","v":{"v":0,"d":"0.00"}},{"$f":"SUM(I36:OFFSET(Suma_VI_II_III,-1,8))","v":{"v":0,"d":"0.00"}},{"$f":"SUM(J36:OFFSET(Suma_VI_II_III,-1,9))","v":{"v":0,"d":"0.00"}},{"$f":"SUM(K36:OFFSET(Suma_VI_II_III,-1,10))","v":{"v":0,"d":"0.00"}}]
["Suma II",{"$nulls":4},{"$f":"SUM(OFFSET(Suma_VI_II_I,0,5),OFFSET(Suma_VI_II_II,0,5),OFFSET(Suma_VI_II_III,0,5))","v":{"v":0,"d":"0.00"}},{"$f":"SUM(OFFSET(Suma_VI_II_I,0,6),OFFSET(Suma_VI_II_II,0,6),OFFSET(Suma_VI_II_III,0,6))","v":{"v":0,"d":"0.00"}},{"$f":"SUM(OFFSET(Suma_VI_II_I,0,7),OFFSET(Suma_VI_II_II,0,7),OFFSET(Suma_VI_II_III,0,7))","v":{"v":0,"d":"0.00"}},{"$f":"SUM(OFFSET(Suma_VI_II_I,0,8),OFFSET(Suma_VI_II_II,0,8),OFFSET(Suma_VI_II_III,0,8))","v":{"v":0,"d":"0.00"}},{"$f":"SUM(OFFSET(Suma_VI_II_I,0,9),OFFSET(Suma_VI_II_II,0,9),OFFSET(Suma_VI_II_III,0,9))","v":{"v":0,"d":"0.00"}},{"$f":"SUM(OFFSET(Suma_VI_II_I,0,10),OFFSET(Suma_VI_II_II,0,10),OFFSET(Suma_VI_II_III,0,10))","v":{"v":0,"d":"0.00"}}]
["III","Koszty ogólne:"]
["1**"]
["2**"]
["…"]
["Suma III",{"$nulls":4},{"$f":"SUM(F42:OFFSET(Suma_VI_III,-1,5))","v":{"v":0,"d":"0.00"}},{"$f":"SUM(G42:OFFSET(Suma_VI_III,-1,6))","v":{"v":0,"d":"0.00"}},{"$f":"SUM(H42:OFFSET(Suma_VI_III,-1,7))","v":{"v":0,"d":"0.00"}},{"$f":"SUM(I42:OFFSET(Suma_VI_III,-1,8))","v":{"v":0,"d":"0.00"}},{"$f":"SUM(J42:OFFSET(Suma_VI_III,-1,9))","v":{"v":0,"d":"0.00"}},{"$f":"SUM(K42:OFFSET(Suma_VI_III,-1,10))","v":{"v":0,"d":"0.00"}}]
["IV","Suma kosztów kwalifikowalnych operacji (I + II + III)",{"$nulls":3},{"$f":"SUM(OFFSET(Suma_VI_I,0,5),OFFSET(Suma_VI_II,0,5),OFFSET(Suma_VI_III,0,5))","v":{"v":0,"d":"0.00"}},{"$f":"SUM(OFFSET(Suma_VI_I,0,6),OFFSET(Suma_VI_II,0,6),OFFSET(Suma_VI_III,0,6))","v":{"v":0,"d":"0.00"}},{"$f":"SUM(OFFSET(Suma_VI_I,0,7),OFFSET(Suma_VI_II,0,7),OFFSET(Suma_VI_III,0,7))","v":{"v":0,"d":"0.00"}},{"$f":"SUM(OFFSET(Suma_VI_I,0,8),OFFSET(Suma_VI_II,0,8),OFFSET(Suma_VI_III,0,8))","v":{"v":0,"d":"0.00"}},{"$f":"SUM(OFFSET(Suma_VI_I,0,9),OFFSET(Suma_VI_II,0,9),OFFSET(Suma_VI_III,0,9))","v":{"v":0,"d":"0.00"}},{"$f":"SUM(OFFSET(Suma_VI_I,0,10),OFFSET(Suma_VI_II,0,10),OFFSET(Suma_VI_III,0,10))","v":{"v":0,"d":"0.00"}}]
[null,"w tym koszty:"]
["IV.1","dla podmiotu wspólnie wnioskującego nr","…",{"$f":"IF($C48>0,SUMIF($M$9:OFFSET(Suma_VI_III,-1,12),$C48,D$9:OFFSET(Suma_VI_III,-1,3)),0)","v":{"v":0,"d":"0.00"}},{"$f":"IF($C48>0,SUMIF($M$9:OFFSET(Suma_VI_III,-1,12),$C48,E$9:OFFSET(Suma_VI_III,-1,4)),0)","v":{"v":0,"d":"0.00"}},{"$f":"IF($C48>0,SUMIF($M$9:OFFSET(Suma_VI_III,0,12),$C48,F$9:OFFSET(Suma_VI_III,0,5)),0)","v":{"v":0,"d":"0.00"}},{"$f":"IF($C48>0,SUMIF($M$9:OFFSET(Suma_VI_III,0,12),$C48,G$9:OFFSET(Suma_VI_III,0,6)),0)","v":{"v":0,"d":"0.00"}},{"$f":"IF($C48>0,SUMIF($M$9:OFFSET(Suma_VI_III,0,12),$C48,H$9:OFFSET(Suma_VI_III,0,7)),0)","v":{"v":0,"d":"0.00"}},{"$f":"IF($C48>0,SUMIF($M$9:OFFSET(Suma_VI_III,0,12),$C48,I$9:OFFSET(Suma_VI_III,0,8)),0)","v":{"v":0,"d":"0.00"}},{"$f":"IF($C48>0,SUMIF($M$9:OFFSET(Suma_VI_III,0,12),$C48,J$9:OFFSET(Suma_VI_III,0,9)),0)","v":{"v":0,"d":"0.00"}},{"$f":"IF($C48>0,SUMIF($M$9:OFFSET(Suma_VI_III,0,12),$C48,K$9:OFFSET(Suma_VI_III,0,10)),0)","v":{"v":0,"d":"0.00"}}]
["IV.2","dla podmiotu wspólnie wnioskującego nr","…",{"$f":"IF($C49>0,SUMIF($M$9:OFFSET(Suma_VI_III,-1,12),$C49,D$9:OFFSET(Suma_VI_III,-1,3)),0)","v":{"v":0,"d":"0.00"}},{"$f":"IF($C49>0,SUMIF($M$9:OFFSET(Suma_VI_III,-1,12),$C49,E$9:OFFSET(Suma_VI_III,-1,4)),0)","v":{"v":0,"d":"0.00"}},{"$f":"IF($C49>0,SUMIF($M$9:OFFSET(Suma_VI_III,0,12),$C49,F$9:OFFSET(Suma_VI_III,0,5)),0)","v":{"v":0,"d":"0.00"}},{"$f":"IF($C49>0,SUMIF($M$9:OFFSET(Suma_VI_III,0,12),$C49,G$9:OFFSET(Suma_VI_III,0,6)),0)","v":{"v":0,"d":"0.00"}},{"$f":"IF($C49>0,SUMIF($M$9:OFFSET(Suma_VI_III,0,12),$C49,H$9:OFFSET(Suma_VI_III,0,7)),0)","v":{"v":0,"d":"0.00"}},{"$f":"IF($C49>0,SUMIF($M$9:OFFSET(Suma_VI_III,0,12),$C49,I$9:OFFSET(Suma_VI_III,0,8)),0)","v":{"v":0,"d":"0.00"}},{"$f":"IF($C49>0,SUMIF($M$9:OFFSET(Suma_VI_III,0,12),$C49,J$9:OFFSET(Suma_VI_III,0,9)),0)","v":{"v":0,"d":"0.00"}},{"$f":"IF($C49>0,SUMIF($M$9:OFFSET(Suma_VI_III,0,12),$C49,K$9:OFFSET(Suma_VI_III,0,10)),0)","v":{"v":0,"d":"0.00"}}]
["…","dla podmiotu wspólnie wnioskującego nr","…",{"$f":"IF($C50>0,SUMIF($M$9:OFFSET(Suma_VI_III,-1,12),$C50,D$9:OFFSET(Suma_VI_III,-1,3)),0)","v":{"v":0,"d":"0.00"}},{"$f":"IF($C50>0,SUMIF($M$9:OFFSET(Suma_VI_III,-1,12),$C50,E$9:OFFSET(Suma_VI_III,-1,4)),0)","v":{"v":0,"d":"0.00"}},{"$f":"IF($C50>0,SUMIF($M$9:OFFSET(Suma_VI_III,0,12),$C50,F$9:OFFSET(Suma_VI_III,0,5)),0)","v":{"v":0,"d":"0.00"}},{"$f":"IF($C50>0,SUMIF($M$9:OFFSET(Suma_VI_III,0,12),$C50,G$9:OFFSET(Suma_VI_III,0,6)),0)","v":{"v":0,"d":"0.00"}},{"$f":"IF($C50>0,SUMIF($M$9:OFFSET(Suma_VI_III,0,12),$C50,H$9:OFFSET(Suma_VI_III,0,7)),0)","v":{"v":0,"d":"0.00"}},{"$f":"IF($C50>0,SUMIF($M$9:OFFSET(Suma_VI_III,0,12),$C50,I$9:OFFSET(Suma_VI_III,0,8)),0)","v":{"v":0,"d":"0.00"}},{"$f":"IF($C50>0,SUMIF($M$9:OFFSET(Suma_VI_III,0,12),$C50,J$9:OFFSET(Suma_VI_III,0,9)),0)","v":{"v":0,"d":"0.00"}},{"$f":"IF($C50>0,SUMIF($M$9:OFFSET(Suma_VI_III,0,12),$C50,K$9:OFFSET(Suma_VI_III,0,10)),0)","v":{"v":0,"d":"0.00"}}]
[{"$nulls":14},"Jak dodać wiersz?"]
["2 rozporządzenie Ministra Rolnictwa i Rozwoju Wsi z dnia 24 września 2015 r. w sprawie szczegółowych warunków i trybu przyznawania pomocy finansowej w ramach poddziałania „Wsparcie na wdrażanie operacji w ramach strategii rozwoju lokalnego kierowanego przez społeczność” objętego Programem Rozwoju Obszarów Wiejskich na lata 2014–2020 (Dz.U. z 2017 r. poz. 772 i 1588),\n* zadanie lub grupa zadań realizowanych w ramach operacji. Definicja \"zadania\" wskazana została w § 1 pkt 36) umowy o przyznaniu pomocy,\n** zadanie lub dostawa/robota/usługa realizowana w ramach zadania,\n*** w przypadku Beneficjenta, dla którego VAT nie będzie kosztem kwalifikowalnym należy wpisać 0,00.",{"$nulls":13},"Jak uzupełnić formułę?"]

{"sheet":"Sekcja_VII_wsk","index":3,"n_rows":69,"n_cols":14,"rows_kept":69,"merged":[[0,0,0,11],[2,0,2,7],[3,2,3,3],[3,7,3,11],[4,0,10,0],[4,1,10,1],[4,2,4,3],[4,7,4,11],[5,2,5,3],[5,7,5,11],[6,2,6,3],[6,7,6,11],[7,2,7,3],[7,7,7,11],[8,2,8,3],[8,7,8,11],[9,2,9,3],[9,7,9,11],[10,2,10,3],[10,7,10,11],[11,0,13,0],[11,1,13,1],[11,2,11,3],[11,7,11,11],[12,2,12,3],[12,7,12,11],[13,2,13,3],[13,7,13,11],[14,2,14,3],[14,7,14,11],[15,2,15,3],[15,7,15,11],[16,2,16,3],[16,7,16,11],[17,2,17,3],[17,7,17,11],[18,2,18,3],[18,7,18,11],[19,0,21,0],[19,1,21,1],[19,2,19,3],[19,7,19,11],[20,2,20,3],[20,7,20,11],[21,2,21,3],[21,7,21,11],[22,2,22,3],[22,7,22,11],[23,2,23,3],[23,7,23,11],[24,0,32,0],[24,1,32,1],[24,2,24,3],[24,7,24,11],[25,2,26,2],[25,7,25,11],[26,7,26,11],[27,2,28,2],[27,7,27,11],[28,7,28,11],[29,2,30,2],[29,7,29,11],[30,7,30,11],[31,2,32,2],[31,7,31,11],[32,7,32,11],[33,0,41,0],[33,1,41,1],[33,2,33,3],[33,7,33,11],[34,2,35,2],[34,7,34,11],[35,7,35,11],[36,2,37,2],[36,7,36,11],[37,7,37,11],[38,2,39,2],[38,7,38,11],[39,7,39,11],[40,2,41,2],[40,7,40,11],[41,7,41,11],[42,2,42,3],[42,7,42,11],[43,0,45,0],[43,1,45,1],[43,2,43,3],[43,7,43,11],[44,2,44,3],[44,7,44,11],[45,2,45,3],[45,7,45,11],[46,2,46,3],[46,7,46,11],[47,2,47,3],[47,7,47,11],[48,2,48,3],[48,7,48,11],[49,2,49,3],[49,7,49,11],[50,2,50,3],[50,7,50,11],[51,2,51,3],[51,7,51,11],[52,2,52,3],[52,7,52,11],[54,0,54,11],[55,2,55,3],[55,7,55,11],[56,2,56,3],[56,7,56,11],[57,2,57,3],[57,7,57,11],[58,2,58,3],[58,7,58,11],[60,1,60,6],[62,1,62,6],[64,1,64,6],[66,1,67,5],[68,1,68,6]]}
["VII. WSKAŹNIKI, KTÓRE ZOSTAŁY OSIĄGNIĘTE W WYNIKU REALIZACJI OPERACJI, W TYM WSKAŹNIKI OSIĄGNIĘCIA CELU(ÓW)"]
[]
["1.1 Wskaźniki obowiązkowe"]
["Lp.","Wskaźnik ","Dezagregacja",null,"Wartość docelowa  wskaźnika zgodnie z umową","Jednostka miary wskaźnika","Wartość wskaźnika osiągnięta w wyniku realizacji operacji","Sposób pomiaru wskaźnika"]
["1.","Liczba utworzonych miejsc pracy","Ogółem",null,null,"pełny etat średnioroczny",{"$f":"SUM(G6:G7)","v":{"v":0,"d":"0.00"}}]
[null,null,"Kobiety",null,"-","pełny etat średnioroczny"]
[null,null,"Mężczyźni",null,"-","pełny etat średnioroczny"]
[null,null,"Osoby niepełnosprawne – posiadające orzeczenie o niepełnosprawności",null,"-","pełny etat średnioroczny"]
[null,null,"Osoby bezrobotne – zarejestrowane w urzędzie pracy (przed podjęciem zatrudnienia we wspartej firmie)",null,"-","pełny etat średnioroczny"]
[null,null,"Osoby powyżej 50 roku życia",null,"-","pełny etat średnioroczny"]
[null,null,"Osoby młode do ukończenia 25 roku życia",null,"-","pełny etat średnioroczny"]
["2.","Liczba utrzynanych miejsc pracy","Ogółem",null,null,"pełny etat średnioroczny",{"$f":"SUM(G13:G14)","v":{"v":0,"d":"0.00"}}]
[null,null,"Kobiety",null,"-","pełny etat średnioroczny"]
[null,null,"Mężczyźni",null,"-","pełny etat średnioroczny"]
["3.","Liczba sieci w zakresie usług turystycznych, które otrzymały wsparcie w ramach realizacji LSR","-",null,null,"sztuka"]
["4.","Liczba podmiotów w ramach sieci w zakresie usług turystycznych ","-",null,null,"sztuka"]
["5.","Liczba sieci w zakresie krótkich łańcuchów żywnościowych lub rynków lokalnych, które otrzymały wsparcie w ramach realizacji LSR","-",null,null,"sztuka"]
["6.","Liczba nowych inkubatorów (centrów) przetwórstwa lokalnego","-",null,null,"sztuka"]
["7.","Liczba zmodernizowanych inkubatorów (centrów) przetwórstwa lokalnego","-",null,null,"sztuka"]
["8.","Długość wybudowanych lub przebudowanych dróg","ogółem",null,null,"km",{"$f":"SUM(G21:G22)","v":{"v":0,"d":"0.00"}}]
[null,null,"drogi wybudowane",null,"-","km"]
[null,null,"drogi przebudowane",null,"-","km"]
["9.","Liczba szkoleń","-",null,null,"sztuka"]
["10.","Liczba osób przeszkolonych","-",null,null,"osoby"]
["11.","Liczba nowych obiektów infrastruktury turystycznej i rekreacyjnej","Ogółem",null,null,"sztuka",{"$f":"SUM(G26:G27)","v":{"v":0,"d":"0.00"}}]
[null,null,"Ogółem","Budynki","-","sztuka",{"$f":"SUM(G28,G30,G32)","v":{"v":0,"d":"0.00"}}]
[{"$nulls":3},"Inne obiekty","-","sztuka",{"$f":"SUM(G29,G31,G33)","v":{"v":0,"d":"0.00"}}]
[null,null,"Obiekty noclegowe","Budynki","-","sztuka"]
[{"$nulls":3},"Inne obiekty","-","sztuka"]
[null,null,"Obiekty gastronomiczne","Budynki","-","sztuka"]
[{"$nulls":3},"Inne obiekty","-","sztuka"]
[null,null,"Obiekty sportowe / rekreacyjne","Budynki","-","sztuka"]
[{"$nulls":3},"Inne obiekty","-","sztuka"]
["12.","Liczba przebudowanych obiektów infrastruktury turystycznej i rekreacyjnej","Ogółem",null,null,"sztuka",{"$f":"SUM(G35:G36)","v":{"v":0,"d":"0.00"}}]
[null,null,"Ogółem","Budynki","-","sztuka",{"$f":"SUM(G37,G39,G41)","v":{"v":0,"d":"0.00"}}]
[{"$nulls":3},"Inne obiekty","-","sztuka",{"$f":"SUM(G38,G40,G42)","v":{"v":0,"d":"0.00"}}]
[null,null,"Obiekty noclegowe","Budynki","-","sztuka"]
[{"$nulls":3},"Inne obiekty","-","sztuka"]
[null,null,"Obiekty gastronomiczne","Budynki","-","sztuka"]
[{"$nulls":3},"Inne obiekty","-","sztuka"]
[null,null,"Obiekty sportowe / rekreacyjne","Budynki","-","sztuka"]
[{"$nulls":3},"Inne obiekty","-","sztuka"]
["13.","Liczba nowych miejsc noclegowych ","-",null,null,"sztuka"]
["14.","Długość wybudowanych lub przebudowanych ścieżek rowerowych i szlaków turystycznych","ogółem",null,null,"km",{"$f":"SUM(G45:G46)","v":{"v":0,"d":"0.00"}}]
[null,null,"ścieżki rowerowe ",null,"-","km"]
[null,null,"ścieżki turystyczne",null,"-","km"]
["15.","Liczba zabytków poddanych pracom konserwatorskim lub restauratorskim","-",null,null,"sztuka"]
["16.","Liczba podmiotów wspartych w ramach operacji obejmujących wyposażenie mające na celu szerzenie lokalnej kultury i dziedzictwa lokalnego","-",null,null,"sztuka"]
["17.","Liczba wydarzeń / imprez ","-",null,null,"sztuka"]
["18.","Liczba osób korzystających z nowej lub przebudowanej infrastruktury drogowej w zakresie włączenia społecznego","-",null,"-","osoby"]
["19.","Liczba podmiotów w ramach sieci w zakresie krótkich łańcuchów żywnościowych lub rynków lokalnych, które otrzymały wsparcie w ramach realizacji LSR","-",null,"-","sztuka"]
["20.","Liczba godzin pracy wolontariuszy zaangażowanych w realizację operacji","-",null,"-","osobogodzina"]
["21.","Liczba osób oceniających szkolenia jako adekwatne do oczekiwań","-",null,"-","osoby"]
[]
["1.2 Pozostałe wskaźniki"]
["Lp.","Wskaźnik ","Dezagregacja",null,"Wartość docelowa  wskaźnika zgodnie z umową","Jednostka miary wskaźnika","Wartość wskaźnika osiągnięta w wyniku realizacji operacji","Sposób pomiaru wskaźnika"]
["1.",null,"-"]
["2.",null,"-"]
["3.",null,"-"]
[{"$nulls":13},"Jak dodać wiersz?"]
["1.3 ","Stan zatrudnienia na potrzeby oceny realizacji wskaźnika utworzone miejsca pracy",{"$nulls":7},",",{"$nulls":3},"Jak uzupełnić formułę?"]
[]
["1.3.1","Wartość momentu bazowego stanu zatrudnienia określona w umowie o przyznaniu pomocy",{"$nulls":7},","]
[]
["1.3.2","Aktualny stan zatrudnienia: ",{"$nulls":7},","]
[]
["1.3.2.1","Średnia arytmetyczna stanu zatrudnienia z okresu 12 miesięcy wliczając miesiąc złożenia wniosku o płatność (w przeliczeniu na pełne etaty)",{"$nulls":7},","]
[]
["1.3.2.2","Stan zatrudnienia w miesiącu złożenia wniosku o płatność (w przeliczeniu na pełne etaty)",{"$nulls":7},","]

{"sheet":"Sekcja_VIII_Zal","index":4,"n_rows":45,"n_cols":6,"rows_kept":45,"merged":[[0,0,0,3],[1,0,1,1],[1,2,1,3],[3,1,3,3],[6,2,6,3],[37,2,37,3],[40,2,40,3],[41,1,41,2],[42,1,42,2],[43,1,43,2],[44,0,44,3]]}
["VIII. INFORMACJA O ZAŁĄCZNIKACH"]
["Wniosek w postaci dokumentu elektronicznego zapisanego na informatycznym nośniku danych",null,"(wybierz z listy)"]
["Lp.","Nazwa załącznika","TAK /ND","Liczba załączników"]
["A.","Załączniki dotyczące operacji"]
["1.","Faktury lub dokumenty o równoważnej wartości dowodowej (w tym umowy o dzieło, zlecenia i inne umowy cywilnoprawne) \n- kopia3","(wybierz z listy)",{"$f":"IF(C5=\"ND\",0,\"\")","v":""}]
["2.","Dowody zapłaty \n- kopia3","(wybierz z listy)",{"$f":"IF(C6=\"ND\",0,\"\")","v":""}]
["3.","Dokumenty potwierdzające utworzenie miejsc pracy / utrzymanie miejsc pracy / poniesienie kosztów zatrudnienia przez Beneficjenta:","(wybierz z listy)"]
["3a.","Umowy o pracę lub spółdzielcze umowy o pracę wraz z zakresami czynności (dla etatów powstałych w wyniku realizacji operacji)\n- kopia3 ","(wybierz z listy)",{"$f":"IF(C8=\"ND\",0,\"\")","v":""}]
["3b.","Zgłoszenie do ubezpieczeń ZUS ZUA (dla etatów powstałych w wyniku realizacji operacji)\n - kopia3","(wybierz z listy)",""]
["3c.","Deklaracje rozliczeniowe ZUS DRA (wraz z ZUS RCA (RCX), ZUS RSA, ZUS RZA) \n - kopia3","(wybierz z listy)",""]
["3d.","Lista/y płac z wyszczególnieniem wszystkich składników wynagrodzenia i kwot pobranych z tytułu opłaconych: składek na ubezpieczenie społeczne i zdrowotne, składek na Fundusz Pracy i Fundusz Gwarantowanych Świadczeń Pracowniczych oraz zaliczek na podatek dochodowy od osób fizycznych\n- kopia3","(wybierz z listy)",""]
["3e.","Dokumenty potwierdzające poniesienie wszystkich składników wynagrodzenia i kwot pobranych z tytułu opłaconych: składek na ubezpieczenie społeczne i zdrowotne, składek na Fundusz Pracy i Fundusz Gwarantowanych Świadczeń Pracowniczych oraz zaliczek na podatek dochodowy od osób fizycznych, zgodnie z listą płac\n- kopia3","(wybierz z listy)",""]
["4.","Dokumentacja z przeprowadzonego postępowania o udzielenie zamówienia","(wybierz z listy)",""]
["5.","Wycena określająca wartość rynkową zakupionych używanych maszyn, urządzeń, sprzętu lub innego wyposażenia o charakterze zabytkowym albo historycznym (w przypadku operacji obejmujących zakup używanego sprzętu o charakterze zabytkowym albo historycznym w ramach zachowania dziedzictwa lokalnego)\n- kopia3","(wybierz z listy)",""]
["6.","Wycena rzeczoznawcy określająca wartość rynkową wkładu rzeczowego w postaci udostępnienia nieruchomości\n- oryginał lub kopia3","(wybierz z listy)",""]
["7.","Umowy z dostawcami lub wykonawcami zawierające specyfikację będącą podstawą wystawienia każdej z przedstawionych faktur lub innych dokumentów o równoważnej wartości dowodowej, jeżeli nazwa towaru lub usługi w przedstawionej fakturze lub dokumencie o równoważnej wartości dowodowej, odnosi się do umów zawartych przez Beneficjenta lub nie pozwala na precyzyjne określenie kosztów kwalifikowalnych\n- kopia3","(wybierz z listy)",""]
["8.","Interpretacja przepisów prawa podatkowego (interpretacja indywidualna) wydana przez Organ upoważniony (w przypadku, gdy Beneficjent złożył do wniosku o przyznanie pomocy Oświadczenia o kwalifikowalności VAT oraz wykazał w kosztach kwalifikowalnych VAT)\n- oryginał lub kopia3","(wybierz z listy)",""]
["9.","Umowa najmu lub dzierżawy maszyn, wyposażenia lub nieruchomości\n- kopia3","(wybierz z listy)",""]
["10.","Inne dokumenty potwierdzające osiągnięcie celów i wskaźników realizacji operacji (dotyczy sekcji VII. Wskaźniki osiagnięcia celu(ów) operacji)\n- oryginał lub kopia3","(wybierz z listy)",""]
["11.","Decyzja o pozwoleniu na budowę (załącznik obowiązkowy w sytuacji, gdy na etapie wniosku o przyznanie pomocy nie był ostatecznym dokumentem)\n- oryginał lub kopia3","(wybierz z listy)",""]
["12.","Pozwolenie na użytkowanie obiektu budowlanego, jeśli taki obowiązek wynika z przepisów prawa budowlanego\n- oryginał lub kopia3","(wybierz z listy)",""]
["13.","Zawiadomienie właściwego organu o zakończeniu budowy złożone co najmniej 14 dni przed zamierzonym terminem przystąpienia do użytkowania, jeżeli obowiązek taki wynika z przepisów prawa budowlanego lub właściwy organ nałożył taki obowiązek \n- oryginał lub kopia3 wraz z: \n- oświadczeniem Beneficjenta, że w ciągu 14 dni od dnia zgłoszenia zakończenia robót właściwy organ nie wniósł sprzeciwu \n– oryginał \nalbo\n- zaświadczeniem wydanym przez właściwy organ, że nie wnosi sprzeciwu w przypadku, gdy zawiadomienie o zakończeniu robót budowlanych będzie przedkładane przed upływem 14 dni\n- oryginał lub kopia3","(wybierz z listy)",""]
["14.","Kosztorys różnicowy\n- oryginał lub kopia3","(wybierz z listy)",""]
["15.","Protokoły odbioru robót / montażu / rozruchu maszyn i urządzeń / instalacji oprogramowania lub Oświadczenie Beneficjenta o poprawnym wykonaniu ww. czynności z udziałem środków własnych\n- oryginał lub kopia3","(wybierz z listy)",""]
["16.","Oświadczenie dotyczące wyodrębnionych kont / prowadzenia wykazu faktur lub dokumentów o równoważnej wartości dowodowej dokumentujących poniesione koszty, w ramach poddziałania 19.2 „Wsparcie na wdrażanie operacji w ramach strategii rozwoju lokalnego kierowanego przez społeczność” (sporządzone na formularzu udostępnionym przez UM) \n- oryginał\n","(wybierz z listy)",""]
["17.","Karta rozliczenia zadania w zakresie wzmocnienia kapitału społecznego w tym podnoszenia wiedzy społeczności lokalnej w zakresie ochrony środowiska, zmian klimatycznych i innowacyjności\n- oryginał lub kopia3","(wybierz z listy)",""]
["18.","Lista/-y obecności na szkoleniu / warsztatach w zakresie operacji dotyczącej wzmocnienia kapitału społecznego, w tym podnoszenie wiedzy społecznej lokalnej w zakresie ochrony środowiska, zmian klimatycznych i innowacyjności\n-oryginał lub kopia3","(wybierz z listy)",""]
["19.","Karta wkładu rzeczowego w formie nieodpłatnej, w tym: wartość towarów, gruntu lub nieruchomości, wartość pracy (usług oraz robót budowlanych świadczonych nieodpłatnie) \n- oryginał lub kopia3","(wybierz z listy)",""]
["20.","Regulamin korzystania z inkubatora przetwórstwa lokalnego produktów rolnych\n- oryginał lub kopia3","(wybierz z listy)",""]
["21.","Pełnomocnictwo (w przypadku, gdy zostało udzielone innej osobie niż podczas składania wniosku o przyznanie pomocy lub gdy zmienił się zakres poprzednio udzielonego pełnomocnictwa)\n- oryginał lub kopia3","(wybierz z listy)",""]
["22.","Umowa cesji wierzytelności\n- oryginał lub kopia3","(wybierz z listy)",""]
["23.","Sprawozdanie z realizacji biznesplanu (składany wraz z wnioskiem o płatność końcową) \n- oryginał","(wybierz z listy)",""]
["24.","Informacja o numerze rachunku bankowego Beneficjenta lub cesjonariusza, prowadzonego przez bank lub spółdzielczą kasę oszczędnościowo–kredytową, na który mają być przekazane środki finansowe z tytułu pomocy \n- oryginał lub kopia3","(wybierz z listy)",""]
["25.","Aktualny wyciąg z rachunku bankowego przeznaczonego do obsługi zaliczki / wyprzedzającego finansowania \n- oryginał lub kopia3","(wybierz z listy)",""]
["26.","Zaświadczenie z banku lub spółdzielczej kasy oszczędnościowo - kredytowej określające wysokość odsetek w okresie od dnia wypłaty zaliczki / wyprzedzającego finansowania do dnia złożenia wniosku o płatność   (załącznik składany opcjonalnie, jeśli wysokość odsetek nie wynika z załącznika nr 25)\n- oryginał lub kopia3","(wybierz z listy)",""]
["27.","Dokumenty potwierdzające zamieszkanie na obszarze objętym LSR  – oryginał lub kopia3","(wybierz z listy)",""]
["28.","Oświadczenie podmiotu ubiegającego się o przyznanie pomocy o wielkości przedsiębiorstwa\n- oryginał sporządzony na formularzu udostępnionym przez UM","(wybierz z listy)",""]
["29.","Inne pozwolenia, zezwolenia, decyzje i inne dokumenty, których uzyskanie było wymagane przez odrębne przepisy w związku ze zrealizowaną operacją\n- oryginał lub kopia3","(wybierz z listy)"]
["29a.",null,"TAK",{"$f":"IF(B39>\"\",\"Wpisz liczbę załączników\",\"\")","v":""}]
["29b.",null,"TAK",{"$f":"IF(B40>\"\",\"Wpisz liczbę załączników\",\"\")","v":""}]
["B.","Inne załączniki dotyczące operacji","(wybierz z listy)",null,null,"Jak dodać wiersz?"]
["1.",null,null,{"$f":"IF(B42>\"\",\"Wpisz liczbę załączników\",\"\")","v":""},null,"Jak uzupełnić formułę?"]
["2.",null,null,{"$f":"IF(B43>\"\",\"Wpisz liczbę załączników\",\"\")","v":""}]
["C.","Liczba załączników (razem):",null,{"$f":"SUM(D5:OFFSET(Suma_VIII_licz_zal,-1,3))","v":0},null,"Jak dodać wiersz?"]
["3 Kopia potwierdzona za zgodność z oryginałem przez pracownika LGD, samorządu województwa, lub podmiot, który wydał dokument, lub w formie kopii poświadczonych za zgodność z oryginałem przez notariusza lub przez występującego w sprawie pełnomocnika będącego radcą prawnym lub adwokatem, z tym że kopia pełnomocnictwa, o której mowa w pkt. A.21, nie może być potwierdzona za zgodność z oryginałem przez Beneficjenta lub przez pracownika LGD. Natomiast kopie faktur lub dokumentów o równoważnej wartości dowodowej oraz kopie dowodów zapłaty mogą zostać potwierdzone za zgodność z oryginałem przez Beneficjenta.",{"$nulls":4},"Jak uzupełnić formułę?"]

{"sheet":"Sekcja_IX_Osw","index":5,"n_rows":24,"n_cols":6,"rows_kept":24,"merged":[[0,0,0,8],[1,1,1,8],[2,1,2,8],[3,1,3,8],[4,1,4,8],[5,1,5,8],[6,1,6,8],[7,1,7,8],[8,1,8,8],[9,1,9,8],[10,1,10,8],[11,1,11,8],[13,0,17,0],[13,5,17,8],[14,1,16,2],[14,3,16,3],[18,1,18,3],[18,5,19,8],[21,1,21,8],[22,1,22,8],[23,1,23,8]]}
["IX. OŚWIADCZENIA BENEFICJENTA"]
["1.","Oświadczam, że:"]
["a)","znane mi są zasady przyznawania i wypłaty pomocy określone w przepisach rozporządzenia2  i umowie o przyznaniu pomocy oraz zasady wypełniania wniosku o płatność zawarte w Instrukcji wypełniania wniosku o płatność;"]
["b)","informacje zawarte we wniosku o płatność oraz jego załącznikach są prawdziwe i zgodne ze stanem prawnym i faktycznym; znane mi są skutki składania fałszywych oświadczeń wynikające z art. 297 § 1 ustawy z dnia 6 czerwca 1997 r. Kodeks karny (Dz.U. Z 2016 r, poz.1137, z późn. zm.);"]
["c)","Beneficjent nie podlega zakazowi dostępu do środków publicznych, o których mowa w art. 5 ust. 3 pkt 4 ustawy z dnia 27 sierpnia 2009r. o finansach publicznych (Dz.U. z 2016 r. poz. 1870 z późn. zm.), na podstawie prawomocnego orzeczenia sądu. Jednocześnie zobowiązuję się do niezwłocznego poinformowania UM o zakazie dostępu do środków publicznych, o których mowa w art. 5 ust. 3 pkt 4  ww. ustawy na podstawie prawomocnego orzeczenia sądu, orzeczonym w stosunku do Beneficjenta;"]
["d)","informuję i rozpowszechniam informacje o pomocy otrzymanej z EFRROW, zgodnie z przepisami Załącznika III do rozporządzenia nr 808/20144;"]
["e)","umożliwię upoważnionym podmiotom przeprowadzanie kontroli wszelkich elementów związanych z realizowaną operacją do dnia, w którym upłynie 5 lata / 3 lata6 od dnia wypłaty płatności końcowej, w szczególności wizyty oraz kontroli na miejscu realizacji operacji i kontroli dokumentów, w obecności osoby reprezentującej/pełnomocnika, podczas wykonywania powyższych czynności. \n"]
["2.","Przyjmuję do wiadomości, że:"]
["a)","zebrane dane osobowe będą przetwarzane przez LGD, która dokonuje wyboru operacji do finansowania, Samorząd Województwa właściwy ze względu na siedzibę ww. LGD oraz Agencję Restrukturyzacji i Modernizacji Rolnictwa z siedzibą w Warszawie: 00-175 Warszawa Al. Jana Pawła II 70, zgodnie   przepisami ustawy z dnia 29 sierpnia 1997  r. o ochronie danych osobowych (Dz.U. z 2016 r. poz. 922) w celu przyznania pomocy finansowej i płatności w ramach poddziałania  „Wsparcie na wdrażanie operacji w ramach strategii rozwoju lokalnego kierowanego przez społeczność”, objętego PROW 2014-2020;"]
["b)","przysługuje mi, jako osobie fizycznej, prawo wglądu do moich danych osobowych oraz do ich poprawiania;"]
["c)","dane Beneficjenta, mogą być przetwarzane przez organy audytowe i dochodzeniowe Unii Europejskiej i państw członkowskich dla zabezpieczenia interesów finansowych Unii;"]
["d)","dane Beneficjenta oraz kwota wypłaty pomocy z publicznych środków finansowych, w tym wypłacona kwota z tytułu udzielonej pomocy w ramach podziałania „Wsparcie na wdrażanie operacji w ramach strategii rozwoju lokalnego kierowanego przez społeczność” objętego PROW 2014-2020, będzie publikowana na stronie internetowej www.minrol.gov.p5.\n\n"]
[]
[]
[null,"……………………………………..",null,"……………………"]
[]
[]
[]
[null,"Miejscowość i data",{"$nulls":3},"podpis Beneficjenta / osób reprezentujących Beneficjenta / pełnomocnika"]
[]
[]
[4,"Rozporządzenie wykonawcze Komisji (UE) nr 808/2014 z dnia 17 lipca 2014 r. ustanawiające zasady stosowania rozporządzenia Parlamentu Europejskiego i Rady (UE) nr 1305/2013 w sprawie wsparcia rozwoju obszarów wiejskich przez Europejski Fundusz Rolny na rzecz Rozwoju Obszarów Wiejskich (EFRROW) (Dz. Urz. UE L 227 z 31.07.2014, str. 18, z późn. zm.),"]
[5,"Zgodnie z art. 111 rozporządzenia Parlamentu Europejskiego i Rady (UE) nr 1306/2013 z dnia 17 grudnia 2013 r. w sprawie finansowania wspólnej polityki rolnej, zarządzania nią i monitorowania jej oraz uchylającego rozporządzenia Rady (EWG) nr 352/78, (WE) nr 165/94, (WE) nr 2799/98, (WE) nr 814/2000, (WE) nr 1290/2005 i (WE) nr 485/2008 (Dz.Urz.UE L 347 z 20.12.2013 r., str. 549, z późn.zm.)."]
[6,"Niepotrzebne skreślić"]

{"sheet":"Zal_16_Wyd_konta","index":6,"n_rows":47,"n_cols":11,"rows_kept":47,"merged":[[2,0,2,3],[4,0,6,8],[8,4,9,8],[11,4,13,8],[15,4,17,8],[21,2,26,8],[28,1,28,5],[28,6,28,8],[29,1,29,5],[29,6,29,8],[30,1,30,5],[30,6,30,8],[31,1,31,5],[31,6,31,8],[32,1,32,5],[32,6,32,8],[33,1,33,5],[33,6,33,8],[34,1,34,5],[34,6,34,8],[36,2,38,8],[37,0,38,0],[41,0,43,4],[41,6,43,8],[44,0,44,4],[44,6,44,8],[46,1,47,8]]}
[{"$nulls":8},"W-2_19.2"]
[]
["Załącznik nr VIII. A.16"]
[]
["Oświadczenie dotyczące wyodrębnionych kont / prowadzenia wykazu faktur lub dokumentów o równoważnej wartości dowodowej dokumentujących poniesione koszty, w ramach poddziałania 19.2 „Wsparcie na wdrażanie operacji w ramach strategii rozwoju lokalnego kierowanego przez społeczność”"]
[]
[]
[]
[{"$nulls":4},{"$f":"IF(Nazwa_Beneficjenta=\"\",\"\",Nazwa_Beneficjenta)","v":""}]
["Imię i Nazwisko / Nazwa Beneficjenta "]
[]
[]
["Adres"]
[]
[]
[]
["Numer umowy z Urzędem Marszałkowskim"]
[]
[]
["Oświadczam, iż:"]
[]
["TAK",null,"prowadzę oddzielny system rachunkowości albo korzystam z odpowiedniego kodu rachunkowego dla  wszystkich transakcji związanych z realizacją operacji, w rozumieniu art. 66 ust. 1 lit. c pkt i Rozporządzenia Parlamentu Europejskiego i Rady (UE) nr 1305/2013 z dnia 17 grudnia 2013 r. w sprawie wsparcia rozwoju obszarów wiejskich przez Europejski Fundusz Rolny na rzecz Rozwoju Obszarów Wiejskich (EFRROW) i uchylającego rozporządzenie Rady (WE) nr 1698/2005 (Dz. Urz. UE L 347 z 20.12.2013, str. 487 z późn.zm)."]
[]
[]
[]
[]
[]
[]
["Lp.","Numer konta księgowego / kodu rachunkowego zgodny z planem kont księgowych Beneficjenta, na którym dokonano księgowania transakcji związanych z operacją",{"$nulls":4},"Nazwa konta księgowego, na którym / kodu rachunkowego, pod którym dokonano księgowania transakcji związanych z operacją"]
[1]
[2]
[3]
[4]
[5]
["…"]
[{"$nulls":10},"Jak dodać wiersz?"]
["TAK",1,"posiadam Wykaz faktur lub dokumentów o  równoważnej wartości dowodowej dokumentujących poniesione koszty, sporządzony zgodnie ze wzorem ustalonym we wniosku o płatność. ",{"$nulls":7},"Jak uzupełnić formułę?"]
[]
[]
[]
[]
["……………………………………., ………………."]
[]
[]
["miejscowość i data",{"$nulls":5},"podpis Beneficjenta / osób reprezentujących Beneficjenta / pełnomocnika"]
[]
[1,"należy zaznaczyć, w przypadku, gdy Beneficjent nie jest zobowiązany na podstawie aktualnych przepisów do prowadzenia ksiąg rachunkowych  i porządzania sprawozdania finansowego zgodnie z zasadami określonymi w ustawie z dnia 29 września 1994 r. o rachunkowości (Dz.U. z 2016 r. poz. 1047 z późn. zm.)."]

{"sheet":"Zal_17_Karta_szkolenia","index":7,"n_rows":25,"n_cols":13,"rows_kept":25,"merged":[[0,9,0,10],[1,0,1,10],[2,0,2,10],[3,3,3,10],[4,3,4,10],[5,3,5,10],[6,3,6,10],[7,3,7,10],[8,3,8,10],[9,3,9,10],[10,2,10,10],[11,2,11,10],[12,2,12,10],[13,2,13,10],[14,2,14,10],[15,3,15,9],[16,3,16,9],[17,2,17,10],[18,2,18,10],[19,2,19,10],[20,2,20,9],[21,2,21,9],[23,2,23,4],[23,6,23,9],[24,2,24,4],[24,6,24,9]]}
[{"$nulls":9},"W-2_19.2"]
["Załącznik nr VIII. A.17"]
["KARTA ROZLICZENIA ZADANIA W ZAKRESIE OPERACJI DOTYCZĄCEJ WZMOCNIENIA KAPITAŁU SPOŁECZNEGO W TYM PODNOSZENIE WIEDZY SPOŁECZNOŚCI LOKALNEJ W ZAKRESIE OCHRONY ŚRODOWISKA, ZMIAN KLIMATYCZNYCH, INNOWACYJNOŚCI"]
["1. ",null,"Nazwa zadania"]
["2. ",null,"Lokalizacja (miejscowość, ulica, numer, kod pocztowy)"]
["3. ",null,"Termin oraz czas trwania zadania (liczba dni i liczba godzin)"]
["4. ",null,"Poniesione koszty (Kwota ogółem)"]
["5. ",null,"Numer i data umowy z wykonawcą"]
["6. ",null,"Dane osoby realizującej zadanie (np. wykładowcy, prowadzącego,  koordynatora)"]
["7. ",null,"Oddziaływanie i efektywność zrealizowanego zadania (w jaki sposób przedsięwzięcie przyczyniło się do osiągnięcia zamierzonego celu, efekt realizacji przedsięwzięcia oraz wpływ zrealizowanego przedsięwzięcia na otoczenie)"]
["8. ",null,"Dokumenty potwierdzające realizację"]
[null,null,"kopia zawiadomienia / zaproszenia o rozpoczęciu zadania"]
[null,null,"program zadania "]
[null,null,"dokumentacja potwierdzająca wybór wykonawcy lub osoby realizującej zadanie"]
[null,null,"dokumentacja zdjęciowa"]
[null,null,"materiały szkoleniowe (np. prezentacje) "]
[]
[null,null,"lista obecności uczestników"]
[null,null,"regulamin konkursu"]
[null,null,"Inne:"]
[]
[]
[{"$nulls":12},"Jak dodać wiersz?"]
[null,null,"…………………………………………………, ……………………………….",{"$nulls":9},"Jak uzupełnić formułę?"]
[null,null,"miejscowość i data",{"$nulls":3},"podpis Beneficjenta / osób reprezentujących Beneficjenta / pełnomocnika"]

{"sheet":"Zal_18_Lista_obecnosci","index":8,"n_rows":40,"n_cols":12,"rows_kept":40,"merged":[[0,8,0,9],[2,0,2,7],[3,0,5,9],[6,0,8,1],[7,2,7,8],[9,0,11,1],[10,2,10,8],[12,0,14,1],[13,2,13,8],[15,0,16,2],[15,3,16,4],[15,5,16,6],[15,7,16,7],[15,8,16,9],[17,1,17,2],[17,3,17,4],[17,5,17,6],[17,8,17,9],[18,1,18,2],[18,3,18,4],[18,5,18,6],[18,8,18,9],[19,1,19,2],[19,3,19,4],[19,5,19,6],[19,8,19,9],[20,1,20,2],[20,3,20,4],[20,5,20,6],[20,8,20,9],[21,1,21,2],[21,3,21,4],[21,5,21,6],[21,8,21,9],[22,1,22,2],[22,3,22,4],[22,5,22,6],[22,8,22,9],[23,1,23,2],[23,3,23,4],[23,5,23,6],[23,8,23,9],[24,1,24,2],[24,3,24,4],[24,5,24,6],[24,8,24,9],[25,1,25,2],[25,3,25,4],[25,5,25,6],[25,8,25,9],[26,1,26,2],[26,3,26,4],[26,5,26,6],[26,8,26,9],[27,1,27,2],[27,3,27,4],[27,5,27,6],[27,8,27,9],[28,1,28,2],[28,3,28,4],[28,5,28,6],[28,8,28,9],[29,1,29,2],[29,3,29,4],[29,5,29,6],[29,8,29,9],[30,1,30,2],[30,3,30,4],[30,5,30,6],[30,8,30,9],[31,1,31,2],[31,3,31,4],[31,5,31,6],[31,8,31,9],[32,0,32,1],[33,1,38,4],[33,6,38,8],[39,1,39,4],[39,6,39,8]]}
[{"$nulls":8},"W-2_19.2"]
[]
["Załącznik nr VIII. A.18"]
["LISTA OBECNOŚCI NA SZKOLENIU / WARSZTATACH W ZAKRESIE OPERACJI DOTYCZĄCEJ WZMOCNIENIA KAPITAŁU SPOŁECZNEGO, W TYM PODNOSZENIE WIEDZY SPOŁECZNEJ LOKALNEJ W ZAKRESIE OCHRONY ŚRODOWISKA, ZMIAN KLIMATYCZNYCH, INNOWACYJNOŚCI"]
[]
[]
["Znak sprawy UM "]
[null,null,"……………………………………………………………………………………..…………………………………………………..……………………………"]
[]
["Nazwa zadania:"]
[null,null,"……………………………………………………………………………………..…………………………………………………..……………………………"]
[]
["Data i miejsce realizacji:"]
[null,null,"……………………………………………………………………………………..…………………………………………………..……………………………"]
[]
["Liczba uczestników \nplanowana (według umowy): ",{"$nulls":4},"Liczba uczestników rzeczywista "]
[]
["Lp.","Imię i nazwisko",null,"Adres zamieszkania",null,"Telefon i e-mail",null,"Podpis uczestnika","Ocena szkolenia \n(adekwatne / nieadekwatne)"]
["1."]
["2."]
["3."]
["4."]
["5."]
["6."]
["7."]
["8."]
["9."]
["10."]
["11."]
["12."]
["13."]
["…"]
[{"$nulls":11},"Jak dodać wiersz?"]
[null,"…………………………………………………, ………………………………",{"$nulls":9},"Jak uzupełnić formułę?"]
[]
[]
[]
[]
[]
[null,"miejscowość i data",{"$nulls":4},"podpis Beneficjenta / osób reprezentujących Beneficjenta / pełnomocnika"]

{"sheet":"Zal_19_Karta_wkladu_rzeczowego","index":9,"n_rows":31,"n_cols":14,"rows_kept":31,"merged":[[0,10,0,11],[2,0,2,11],[4,0,4,11],[5,0,5,1],[5,2,5,3],[6,0,12,0],[6,1,11,1],[6,2,11,2],[6,3,11,3],[6,4,11,4],[6,5,11,5],[6,6,11,6],[6,7,11,7],[6,8,11,8],[6,9,11,9],[6,10,11,10],[6,11,11,11],[25,1,28,3],[25,5,28,10],[29,1,29,3],[29,5,29,10],[30,0,31,11]]}
[{"$nulls":10},"W-2_19.2"]
[]
["Załącznik nr VIII. A.19"]
[]
["KARTA WKŁADU RZECZOWEGO W FORMIE NIEODPŁATNEJ,W TYM: WARTOŚĆ TOWARÓW, GRUNTU LUB NIERUCHOMOŚCI, WARTOŚĆ PRACY (USŁUG ORAZ ROBÓT BUDOWLANYCH ŚWIADCZONYCH NIEODPŁATNIE)"]
["Znak sprawy UM ",null,"………………………………."]
["Lp.","Imię i nazwisko osoby /\nnazwa podmiotu / adres / \nświadczącej lub udostępniającej wkład rzeczowy","PESEL / NIP1","Opis wkładu rzeczowego","Termin realizacji  i czas trwania","Jednostka miary ","Liczba / ilość","Wartość jednostkowa wkładu rzeczowego\n(w zł)","Razem \nwartość \nwkładu rzeczowego\n(w zł)","Podpis osoby świadczącej lub udostępniającej wkład rzeczowy","Podpis przyjmującego  wkład rzeczowy","UWAGI"]
[]
[]
[]
[]
[]
[null,1,2,3,4,5,6,7,"8 = 6 x 7",9,10,11]
[1,{"$nulls":7},{"$f":"G14*H14","v":{"v":0,"d":"0.00"}}]
[2,{"$nulls":7},{"$f":"G15*H15","v":{"v":0,"d":"0.00"}}]
[3,{"$nulls":7},{"v":0,"d":"0.00"}]
[4,{"$nulls":7},{"v":0,"d":"0.00"}]
[5,{"$nulls":7},{"v":0,"d":"0.00"}]
[6,{"$nulls":7},{"v":0,"d":"0.00"}]
[7,{"$nulls":7},{"v":0,"d":"0.00"}]
[8,{"$nulls":7},{"v":0,"d":"0.00"}]
[9,{"$nulls":7},{"v":0,"d":"0.00"}]
["…",{"$nulls":7},{"v":0,"d":"0.00"}]
[{"$nulls":7},"RAZEM:",{"$f":"SUM(I14:OFFSET(Razem_Zal19_KWR,-1,1))","v":{"v":0,"d":"0.00"}},{"$nulls":4},"Jak dodać wiersz?"]
[{"$nulls":13},"Jak uzupełnić formułę?"]
[null,"…………………………………….., …………………………"]
[]
[]
[]
[null,"miejscowość i data",{"$nulls":3},"podpis Beneficjenta / osób reprezentujących Beneficjenta / pełnomocnika"]
["1 obowiązek podawania numeru NIP nie dotyczy osób fizycznych objętych rejestrem PESEL, nie prowadzących działalności gospodarczej lub niebędących zarejestrowanymi podatnikami podatku od towarów i usług."]